bitfinex-derivatives/quotes_BTCF0:USTF0_20250309
["timestamp","ask_amount","ask_price","bid_price","bid_amount"]
[1741520621503,0.1008,84962.0,84961.0,0.1177222]
[1741520621701,0.2185208,84962.0,84961.0,0.1177222]
[1741520625293,0.1008,84962.0,84961.0,0.1177222]
[1741520625500,0.2185208,84962.0,84961.0,0.1177222]
[1741520630402,0.2185208,84962.0,84961.0,0.39963577]
[1741520631510,0.00084,84994.0,84961.0,0.28191357]
[1741520631696,0.08004,84988.0,84982.0,0.1176931]
[1741520631900,0.08004,84988.0,84977.0,0.5373482]
[1741520631901,0.1176986,84978.0,84977.0,0.5373482]
[1741520632101,0.1176986,84978.0,84977.0,0.3608]
[1741520632504,0.1176986,84978.0,84977.0,0.4785]
[1741520632908,0.3498386,84978.0,84977.0,0.4785]
[1741520633306,0.3498386,84978.0,84977.0,0.49001145]
[1741520633702,0.3498386,84978.0,84971.0,0.3608]
[1741520633912,0.117707,84972.0,84971.0,0.3608]
[1741520634109,0.197747,84972.0,84971.0,0.3608]
[1741520634712,0.1177111,84969.0,84968.0,0.3608]
[1741520635718,0.1177111,84969.0,84968.0,0.4785125]
[1741520636415,0.17784,84972.0,84971.0,0.1177083]
[1741520636809,0.295547,84972.0,84971.0,0.1177083]
[1741520637013,0.17784,84972.0,84971.0,0.1177083]
[1741520637314,0.295547,84972.0,84971.0,0.1177083]
[1741520637719,0.17784,84972.0,84969.0,0.0588549]
[1741520638020,0.1177097,84970.0,84969.0,0.1765644]
[1741520639205,0.2366941,84972.0,84968.0,0.3608]
[1741520639401,0.1698111,84969.0,84968.0,0.3608]
[1741520639602,0.1698111,84969.0,84968.0,0.4785125]
[1741520640524,0.2202111,84969.0,84968.0,0.3608]
[1741520640818,0.2202111,84969.0,84968.0,0.4785125]
[1741520642916,0.2202111,84969.0,84968.0,0.3608]
[1741520643514,0.2202111,84969.0,84968.0,0.4785125]
[1741520644117,0.2202111,84969.0,84968.0,0.3608]
[1741520645322,0.2202111,84969.0,84968.0,0.57241791]
[1741520646924,0.2202111,84969.0,84968.0,0.21161791]
[1741520647119,0.2202111,84969.0,84968.0,0.13231791]
[1741520647514,0.3702111,84969.0,84968.0,0.13231791]
[1741520648021,0.38203161,84969.0,84968.0,0.13231791]
[1741520649225,0.1177125,84968.0,84967.0,0.13231791]
[1741520649425,0.1674125,84968.0,84967.0,0.13231791]
[1741520649626,0.2197125,84968.0,84967.0,0.13231791]
[1741520650318,0.2703125,84968.0,84967.0,0.13231791]
[1741520654522,0.2703125,84968.0,84964.0,0.00017658]
[1741520654523,0.54667457,84968.0,84964.0,0.00017658]
[1741520654713,0.4785167,84965.0,84964.0,0.00017658]
[1741520654914,0.8860567,84965.0,84964.0,0.00017658]
[1741520655223,1.0360567,84965.0,84964.0,8e-08]
[1741520658523,1.09331877,84965.0,84964.0,8e-08]
[1741520658918,1.18991877,84965.0,84964.0,8e-08]
[1741520659517,0.1177527,84939.0,84938.0,0.0515]
[1741520659715,0.08004,84939.0,84934.0,0.0493]
[1741520659916,0.1177568,84936.0,84935.0,0.0512]
[1741520660327,0.2143568,84936.0,84935.0,0.0512]
[1741520662032,0.1177679,84928.0,84927.0,0.04887658]
[1741520662629,0.1978079,84928.0,84927.0,0.04887658]
[1741520662820,0.2955079,84928.0,84927.0,0.04887658]
[1741520663022,0.2475079,84928.0,84927.0,0.04887658]
[1741520664735,0.2475079,84928.0,84927.0,0.16664588]
[1741520665126,0.2475079,84928.0,84927.0,0.04887658]
[1741520672830,0.2475079,84928.0,84927.0,0.09897658]
[1741520673334,0.1674679,84928.0,84927.0,0.21674588]
[1741520673534,0.2475079,84928.0,84927.0,0.09897658]
[1741520675237,0.17593333,84955.0,84927.0,0.09897658]
[1741520675433,0.00892832,84952.0,84943.0,0.1177471]
[1741520675629,0.0588746,84942.0,84938.0,0.1177502]
[1741520675831,0.36239798,84944.0,84943.0,0.1177471]
[1741520676023,0.18577658,84944.0,84943.0,0.1177471]
[1741520676228,0.30352238,84944.0,84943.0,0.1177471]
[1741520676629,0.30352238,84944.0,84943.0,0.0497]
[1741520677131,0.30352238,84944.0,84943.0,0.06163848]
[1741520677330,0.30352238,84944.0,84943.0,0.17938558]
[1741520677938,0.18577658,84944.0,84943.0,0.59038558]
[1741520678140,0.30352238,84944.0,84943.0,0.59038558]
[1741520678632,0.19796238,84944.0,84943.0,0.59038558]
[1741520679833,0.24856238,84944.0,84943.0,0.59038558]
[1741520683539,0.16852238,84944.0,84943.0,0.47263848]
[1741520684942,0.00017658,84944.0,84943.0,0.59038558]
[1741520685935,0.11792238,84944.0,84943.0,0.47263848]
[1741520686133,0.11792238,84944.0,84943.0,0.4607]
[1741520686540,0.11792238,84944.0,84943.0,0.5784471]
[1741520686844,0.26462238,84944.0,84943.0,0.5784471]
[1741520689642,0.14687658,84944.0,84943.0,0.5784471]
[1741520689839,0.09877658,84944.0,84943.0,0.5784471]
[1741520690044,0.21652238,84944.0,84943.0,0.5784471]
[1741520691444,0.09877658,84944.0,84943.0,0.5784471]
[1741520691643,0.00017658,84944.0,84943.0,0.5784471]
[1741520692045,0.11792238,84944.0,84943.0,0.5784471]
[1741520692543,0.11792238,84944.0,84943.0,0.4105]
[1741520692935,0.27362238,84944.0,84943.0,0.4105]
[1741520693139,0.27362238,84944.0,84943.0,0.5282471]
[1741520695046,0.27362238,84944.0,84943.0,0.4105]
[1741520697151,0.27362238,84944.0,84943.0,0.5282471]
[1741520697342,0.15587658,84944.0,84943.0,0.5282471]
[1741520697542,0.27362238,84944.0,84943.0,0.5811471]
[1741520699653,0.10556,84959.0,84958.0,0.1177264]
[1741520699853,0.07973941,84959.0,84958.0,0.9192864]
[1741520701056,0.14074666,84964.0,84963.0,0.1177194]
[1741520701358,0.14074666,84964.0,84963.0,0.1976794]
[1741520701651,0.14074666,84964.0,84963.0,0.3476794]
[1741520702051,0.14074666,84964.0,84963.0,0.4456794]
[1741520702953,0.1177032,84975.0,84974.0,0.1177042]
[1741520703155,0.1177032,84975.0,84974.0,0.3608]
[1741520703352,0.1669032,84975.0,84974.0,0.3608]
[1741520703556,0.1177139,84967.0,84966.0,0.3608]
[1741520703755,0.117725,84959.0,84958.0,0.3608]
[1741520703954,0.1177347,84952.0,84951.0,0.049]
[1741520704254,0.0588665,84954.0,84946.0,0.3625656]
[1741520704442,0.1177361,84951.0,84947.0,0.1177415]
[1741520704648,0.1976961,84951.0,84946.0,0.3625656]
[1741520705755,0.1976961,84951.0,84947.0,0.1177414]
[1741520706059,0.1976961,84951.0,84948.0,0.1177398]
[1741520706656,0.1976961,84951.0,84946.0,0.4220371]
[1741520706857,0.1976961,84951.0,84950.0,0.00017658]
[1741520710355,0.1976961,84951.0,84950.0,0.11791398]
[1741520710753,0.1080632,84958.0,84950.0,0.45837658]
[1741520710754,0.0492,84958.0,84950.0,0.45837658]
[1741520710947,0.1177361,84952.0,84951.0,0.117731]
[1741520711154,0.1177361,84952.0,84951.0,0.215131]
[1741520711463,0.1698361,84952.0,84951.0,0.215131]
[1741520714461,0.1698361,84952.0,84951.0,0.0974]
[1741520714666,0.1698361,84952.0,84951.0,0.0484]
[1741520715071,0.1698361,84952.0,84951.0,0.2145361]
[1741520715257,0.2206361,84952.0,84951.0,0.2145361]
[1741520716762,0.1685347,84952.0,84951.0,0.2145361]
[1741520717163,0.1685347,84952.0,84951.0,0.0968]
[1741520717663,0.1685347,84952.0,84951.0,0.0484]
[1741520718059,0.1685347,84952.0,84951.0,0.0977]
[1741520718262,0.1685347,84952.0,84951.0,0.4585]
[1741520719673,0.1685347,84952.0,84951.0,0.5762361]
[1741520719975,0.1685347,84952.0,84951.0,0.4585]
[1741520721473,0.1177347,84952.0,84951.0,0.4585]
[1741520721675,0.0512,84957.0,84956.0,0.1177291]
[1741520723475,0.14074666,84969.0,84968.0,0.1177125]
[1741520723874,0.1177111,84969.0,84968.0,0.1177125]
[1741520724477,0.0521,84970.0,84968.0,0.1177125]
[1741520724478,0.1698108,84970.0,84969.0,0.1177111]
[1741520724780,0.0521,84970.0,84969.0,0.1657111]
[1741520724984,0.0418,84970.0,84969.0,0.1657111]
[1741520725274,0.1595097,84970.0,84969.0,0.1657111]
[1741520725473,0.2116097,84970.0,84969.0,0.1657111]
[1741520726578,0.2116097,84970.0,84969.0,0.17747538]
[1741520726778,0.2116097,84970.0,84969.0,0.05976428]
[1741520727180,0.2116097,84970.0,84966.0,0.058857]
[1741520727181,0.0939,84970.0,84964.0,0.3608]
[1741520727373,0.1765743,84967.0,84966.0,0.1177149]
[1741520727574,0.0588576,84967.0,84966.0,0.1177149]
[1741520727775,0.1555576,84967.0,84966.0,0.1177149]
[1741520727973,0.1555576,84967.0,84966.0,0.1298061]
[1741520731189,0.07988,84979.0,84971.0,0.0588536]
[1741520731376,0.1765597,84974.0,84973.0,0.1177005]
[1741520731575,0.1177056,84973.0,84972.0,0.0418]
[1741520731782,0.1177111,84969.0,84968.0,0.07988]
[1741520731985,0.1177111,84969.0,84968.0,0.1177125]
[1741520732489,0.2512111,84969.0,84968.0,0.1177125]
[1741520732876,0.1335,84969.0,84967.0,0.04577658]
[1741520733080,0.1177125,84968.0,84967.0,0.16348908]
[1741520733479,0.1634125,84968.0,84967.0,0.04577658]
[1741520733778,0.2087125,84968.0,84967.0,0.04577658]
[1741520733979,0.2087125,84968.0,84967.0,0.00017658]
[1741520734489,0.2087125,84968.0,84964.0,0.3608]
[1741520734490,0.1177167,84965.0,84964.0,0.3608]
[1741520734681,0.117725,84959.0,84958.0,0.28129364]
[1741520734989,0.197605,84959.0,84958.0,0.28129364]
[1741520735390,0.288205,84959.0,84958.0,0.28129364]
[1741520737581,0.33657919,84959.0,84958.0,0.28129364]
[1741520738290,0.331605,84959.0,84958.0,0.28129364]
[1741520739695,0.21388,84959.0,84952.0,0.01188071]
[1741520739991,0.1177277,84957.0,84955.0,0.1177298]
[1741520740188,0.1177277,84957.0,84956.0,0.16529463]
[1741520740388,0.1177277,84957.0,84956.0,0.04756553]
[1741520740793,0.11781592,84957.0,84956.0,0.04756553]
[1741520743589,0.11781592,84957.0,84956.0,0.00176553]
[1741520745487,0.12279909,84957.0,84956.0,0.00176553]
[1741520750992,0.12279909,84957.0,84956.0,0.11949463]
[1741520751395,0.3608,84999.0,84956.0,0.86098553]
[1741520751600,0.21054647,84981.0,84980.0,0.1176959]
[1741520751892,0.21054647,84981.0,84980.0,0.1975759]
[1741520752997,0.32824097,84981.0,84980.0,0.1975759]
[1741520753399,0.32824097,84981.0,84980.0,0.20942836]
[1741520754602,0.32824097,84981.0,84980.0,0.23422836]
[1741520755599,0.32824097,84981.0,84980.0,0.51514836]
[1741520755800,0.32824097,84981.0,84980.0,0.59498836]
[1741520756999,0.1176945,84981.0,84980.0,0.49034836]
[1741520757206,0.1176945,84981.0,84980.0,0.37265246]
[1741520757405,0.1612945,84981.0,84980.0,0.37265246]
[1741520758800,0.1612945,84981.0,84980.0,0.49034836]
[1741520760308,0.1176945,84981.0,84980.0,0.49034836]
[1741520760504,0.1599945,84981.0,84980.0,0.49034836]
[1741520761400,0.1176945,84981.0,84980.0,0.51514836]
[1741520762200,0.1176945,84981.0,84980.0,0.59498836]
[1741520763308,0.0448,84982.0,84980.0,0.59498836]
[1741520763503,0.1624931,84982.0,84981.0,0.1176945]
[1741520763699,0.1624931,84982.0,84981.0,0.1622945]
[1741520764009,0.16746558,84982.0,84981.0,0.1622945]
[1741520764209,0.16746558,84982.0,84981.0,0.1870945]
[1741520765300,0.16746558,84982.0,84981.0,0.0446]
[1741520766195,0.1176986,84978.0,84977.0,0.3608]
[1741520766406,0.1176986,84978.0,84977.0,0.37275204]
[1741520766606,0.12267108,84978.0,84977.0,0.37275204]
[1741520766904,0.00497248,84978.0,84977.0,0.49045204]
[1741520767095,0.0419,84978.0,84977.0,0.49045204]
[1741520767303,0.1595986,84978.0,84977.0,0.12965204]
[1741520767805,0.0447,84986.0,84985.0,0.117689]
[1741520768511,0.2058876,84986.0,84985.0,0.117689]
[1741520770307,0.0882,84986.0,84985.0,0.117689]
[1741520770514,0.0447,84986.0,84985.0,0.117689]
[1741520770709,0.0447,84986.0,84985.0,0.197489]
[1741520770904,0.1623876,84986.0,84985.0,0.240589]
[1741520771310,0.1623876,84986.0,84985.0,0.1229]
[1741520771614,0.2040876,84986.0,84985.0,0.240589]
[1741520772209,0.2040876,84986.0,84985.0,0.24934436]
[1741520772610,0.1176903,84984.0,84983.0,0.3608]
[1741520773607,0.12267559,84984.0,84983.0,0.3608]
[1741520774117,0.12267559,84984.0,84983.0,0.4784917]
[1741520774810,0.12267559,84984.0,84983.0,0.5245917]
[1741520775917,0.12267559,84984.0,84983.0,0.4069]
[1741520778405,0.12267559,84984.0,84983.0,0.1637917]
[1741520780611,0.12267559,84984.0,84983.0,0.0461]
[1741520782621,0.12267559,84984.0,84983.0,0.1637917]
[1741520783113,0.1176973,84979.0,84978.0,0.21084158]
[1741520783314,0.1974973,84979.0,84978.0,0.14144158]
[1741520785517,0.20931221,84979.0,84978.0,0.14144158]
[1741520785721,0.1974973,84979.0,84972.0,0.00017658]
[1741520785918,0.1177056,84973.0,84972.0,0.00017658]
[1741520786117,0.1975056,84973.0,84972.0,0.00017658]
[1741520787021,0.2833056,84973.0,84972.0,0.00017658]
[1741520788125,0.2833056,84973.0,84972.0,0.16278358]
[1741520788618,0.2833056,84973.0,84972.0,0.04507658]
[1741520789423,0.2833056,84973.0,84972.0,0.00017658]
[1741520789821,0.117725,84959.0,84958.0,0.28129364]
[1741520790613,0.117725,84959.0,84956.0,0.00176553]
[1741520790614,0.1637,84959.0,84957.0,0.35282564]
[1741520790924,0.1177264,84958.0,84957.0,0.35282564]
[1741520791427,0.2016264,84958.0,84957.0,0.35282564]
[1741520792324,0.2016264,84958.0,84957.0,0.39522564]
[1741520794336,0.2016264,84958.0,84957.0,0.51295334]
[1741520794625,0.2016264,84958.0,84957.0,0.55705334]
[1741520794830,0.2814264,84958.0,84957.0,0.43932564]
[1741520795831,0.2814264,84958.0,84957.0,0.0865]
[1741520796628,0.1177264,84958.0,84957.0,0.2042277]
[1741520796829,0.1975264,84958.0,84957.0,0.2042277]
[1741520797127,0.0437,84959.0,84957.0,0.2042277]
[1741520797321,0.0437,84959.0,84958.0,0.1177264]
[1741520797833,0.161425,84959.0,84958.0,0.2045264]
[1741520798034,0.1177216,84962.0,84958.0,0.0868]
[1741520798236,0.0427,84964.0,84963.0,0.1177194]
[1741520798531,0.1177167,84965.0,84964.0,0.2354335]
[1741520799931,0.0427,84967.0,84964.0,0.1177155]
[1741520800138,0.1604155,84967.0,84966.0,0.1177153]
[1741520805028,0.1177208,84962.0,84961.0,0.3608]
[1741520805242,0.1177277,84957.0,84956.0,0.28176526]
[1741520805541,0.1177277,84957.0,84956.0,0.39949436]
[1741520805738,0.1177277,84957.0,84956.0,0.28176526]
[1741520806048,0.2026277,84957.0,84956.0,0.39949436]
[1741520807235,0.1177217,84965.0,84956.0,0.28176526]
[1741520807433,0.0432,84965.0,84964.0,0.1177167]
[1741520807630,0.3608,84986.0,84964.0,0.07976]
[1741520807945,0.1765721,84968.0,84965.0,0.101158]
[1741520808138,0.1177153,84966.0,84965.0,0.101158]
[1741520808635,0.1177153,84966.0,84965.0,0.058858]
[1741520808837,0.1619153,84966.0,84965.0,0.058858]
[1741520809036,0.2051153,84966.0,84965.0,0.058858]
[1741520810738,0.1609153,84966.0,84965.0,0.058858]
[1741520810946,0.0588539,84972.0,84964.0,0.12466]
[1741520810947,0.0588516,84975.0,84974.0,0.1177028]
[1741520811745,0.05885,84977.0,84976.0,0.1177014]
[1741520813440,0.05885,84977.0,84976.0,0.12948108]
[1741520813848,0.10275,84977.0,84976.0,0.12948108]
[1741520814343,0.05885,84977.0,84976.0,0.12948108]
[1741520814644,0.0447,84978.0,84977.0,0.1177]
[1741520814833,0.1623986,84978.0,84977.0,0.1177]
[1741520815452,0.1623986,84978.0,84977.0,0.1625]
[1741520816637,0.1623986,84978.0,84977.0,0.2049]
[1741520821441,0.1623986,84978.0,84977.0,0.0872]
[1741520821646,0.1623986,84978.0,84977.0,0.2049]
[1741520822049,0.1623986,84978.0,84977.0,0.0872]
[1741520823049,0.1177,84977.0,84976.0,0.01177968]
[1741520823252,0.1612,84977.0,84974.0,0.4412]
[1741520823451,0.1592014,84976.0,84975.0,0.1610023]
[1741520823855,0.2027014,84976.0,84975.0,0.1610023]
[1741520824047,0.2027014,84976.0,84975.0,0.2035023]
[1741520824248,0.2027014,84976.0,84975.0,0.1610023]
[1741520824442,0.2027014,84976.0,84975.0,0.17259284]
[1741520824943,0.2027014,84976.0,84975.0,0.21509284]
[1741520825347,0.085,84976.0,84975.0,0.21509284]
[1741520825955,0.00017658,84981.0,84980.0,0.1176959]
[1741520826478,0.11787108,84981.0,84980.0,0.1974159]
[1741520826879,0.00017658,84981.0,84980.0,0.1974159]
[1741520827276,0.11787108,84981.0,84980.0,0.2387159]
[1741520827780,0.16317108,84981.0,84980.0,0.2387159]
[1741520828166,0.04547658,84981.0,84979.0,0.0424]
[1741520828483,0.1615959,84980.0,84979.0,0.0424]
[1741520828980,0.1615959,84980.0,84979.0,0.1600973]
[1741520829476,0.00017658,84981.0,84980.0,0.1176959]
[1741520829668,0.00017658,84981.0,84980.0,0.2390159]
[1741520829870,0.0849,84993.0,84988.0,0.1176848]
[1741520830073,0.0439,84992.0,84988.0,0.5582048]
[1741520830776,0.22334178,84989.0,84988.0,0.6878048]
[1741520830978,0.10565838,84989.0,84988.0,0.6878048]
[1741520831179,0.1176821,84990.0,84989.0,0.1176834]
[1741520831480,0.1596821,84990.0,84989.0,0.2024834]
[1741520831871,0.2019821,84990.0,84989.0,0.0848]
[1741520832274,0.2019821,84990.0,84989.0,0.2024834]
[1741520832680,0.1762671,85003.0,84993.0,0.0588387]
[1741520832974,0.4196232,85016.0,84999.0,0.3608]
[1741520833180,0.0867,85015.0,85013.0,0.1176488]
[1741520833376,0.0867,85015.0,85014.0,0.2851688]
[1741520833980,0.2043474,85015.0,85014.0,0.2851688]
[1741520834776,0.058828,85009.0,85005.0,0.00017648]
[1741520834980,0.4784599,85006.0,85005.0,0.00017648]
[1741520835380,0.1176599,85006.0,85005.0,0.00017648]
[1741520835578,0.1176599,85006.0,85005.0,0.11783778]
[1741520835776,0.1176599,85006.0,85005.0,0.00017648]
[1741520837376,0.4784599,85006.0,85005.0,0.00017648]
[1741520837979,0.4784599,85006.0,85005.0,0.11783778]
[1741520838581,0.4784599,85006.0,85005.0,0.00017648]
[1741520838984,0.1285,85008.0,85005.0,0.00017648]
[1741520839285,0.2461571,85008.0,85007.0,0.1176585]
[1741520839882,0.2461571,85008.0,85007.0,0.1626585]
[1741520840284,0.2461571,85008.0,85005.0,0.00017648]
[1741520840285,0.1176599,85006.0,85005.0,0.00017648]
[1741520842893,0.1176599,85006.0,85005.0,0.11783778]
[1741520843388,0.1176599,85006.0,85005.0,0.17666498]
[1741520843891,0.2461582,85008.0,85007.0,0.1176585]
[1741520844395,0.1285,85008.0,85007.0,0.1176585]
[1741520845289,0.0437,85008.0,85007.0,0.1176585]
[1741520845489,0.2068571,85008.0,85007.0,0.1176585]
[1741520845687,0.1613571,85008.0,85007.0,0.1176585]
[1741520849296,0.1176599,85006.0,85005.0,0.00017648]
[1741520849897,0.1176599,85006.0,85005.0,0.04407648]
[1741520850391,0.4784599,85006.0,85005.0,0.04407648]
[1741520850598,0.1176599,85006.0,85005.0,0.00017648]
[1741520850787,0.4784599,85006.0,85005.0,0.00017648]
[1741520853491,0.4784599,85006.0,85005.0,0.11783778]
[1741520853890,0.4784599,85006.0,85005.0,0.00017648]
[1741520854094,0.4784599,85006.0,85005.0,0.04117648]
[1741520854293,0.4784599,85006.0,85005.0,0.15883778]
[1741520857801,0.3608,85006.0,85005.0,0.20023778]
[1741520857998,0.4784599,85006.0,85005.0,0.20023778]
[1741520858699,0.3608,85006.0,85005.0,0.20023778]
[1741520858997,0.4784599,85006.0,85005.0,0.20023778]
[1741520861803,0.3608,85006.0,85005.0,0.20023778]
[1741520862003,0.1025292,85008.0,85005.0,0.20023778]
[1741520862201,0.1176599,85006.0,85005.0,0.31789768]
[1741520862706,0.1613599,85006.0,85005.0,0.31789768]
[1741520863806,0.1613599,85006.0,85005.0,0.08257648]
[1741520864200,0.1613599,85006.0,85005.0,0.20023778]
[1741520865601,0.2409999,85006.0,85005.0,0.00017648]
[1741520865796,0.1176654,85002.0,85001.0,0.35282564]
[1741520866193,0.1176654,85002.0,85001.0,0.28472564]
[1741520866703,0.2055654,85002.0,85001.0,0.28472564]
[1741520870094,0.1176751,84995.0,84994.0,0.0422]
[1741520870293,0.1176751,84995.0,84994.0,0.1598765]
[1741520870499,0.1973151,84995.0,84994.0,0.2033765]
[1741520870699,0.1973151,84995.0,84994.0,0.2457765]
[1741520870900,0.07964,84995.0,84994.0,0.2457765]
[1741520871201,0.202471,84998.0,84997.0,0.1176723]
[1741520871697,0.202471,84998.0,84997.0,0.0396]
[1741520871899,0.202471,84998.0,84997.0,0.1572723]
[1741520872293,0.202471,84998.0,84997.0,0.0396]
[1741520872504,0.1176751,84995.0,84994.0,0.2022758]
[1741520872705,0.1176751,84995.0,84994.0,0.2418758]
[1741520876503,0.1176751,84995.0,84994.0,0.0818]
[1741520876911,0.1176751,84995.0,84994.0,0.1994765]
[1741520877212,0.1176751,84995.0,84994.0,0.0818]
[1741520877507,0.1176751,84995.0,84994.0,0.0422]
[1741520877904,0.1176751,84995.0,84994.0,0.2028765]
[1741520880108,0.1176751,84995.0,84994.0,0.0852]
[1741520880704,0.2016751,84995.0,84994.0,0.0852]
[1741520881105,0.2016751,84995.0,84994.0,0.0422]
[1741520882617,0.084,84995.0,84993.0,0.00017648]
[1741520882820,0.1176765,84994.0,84993.0,0.00017648]
[1741520883120,0.1973165,84994.0,84993.0,0.00017648]
[1741520883413,0.2808165,84994.0,84993.0,0.00017648]
[1741520883603,0.29250383,84994.0,84993.0,0.00017648]
[1741520885316,0.2808165,84994.0,84993.0,0.00017648]
[1741520886618,0.29245982,84994.0,84993.0,0.00017648]
[1741520886919,0.2808165,84994.0,84993.0,0.00017648]
[1741520890516,0.2808165,84994.0,84993.0,0.11785438]
[1741520890921,0.2808165,84994.0,84993.0,0.00017648]
[1741520891119,0.2808165,84994.0,84993.0,0.11785438]
[1741520891512,0.2011765,84994.0,84993.0,0.00017648]
[1741520891707,0.2808165,84994.0,84993.0,0.00017648]
[1741520891917,0.2808165,84994.0,84993.0,0.04477648]
[1741520892313,0.2808165,84994.0,84993.0,0.00017648]
[1741520893329,0.2923961,84994.0,84993.0,0.00017648]
[1741520896518,0.2808165,84994.0,84993.0,0.00017648]
[1741520896720,0.2011765,84994.0,84993.0,0.11785438]
[1741520896917,0.2808165,84994.0,84993.0,0.11785438]
[1741520897112,0.2808165,84994.0,84993.0,0.00017648]
[1741520897113,0.2011765,84994.0,84993.0,0.00017648]
[1741520897322,0.2808165,84994.0,84993.0,0.11785438]
[1741520897827,0.2808165,84994.0,84993.0,0.19875438]
[1741520898419,0.16314,84994.0,84993.0,0.19875438]
[1741520898712,0.2808165,84994.0,84993.0,0.19875438]
[1741520898914,0.0835,84994.0,84993.0,0.19875438]
[1741520899111,0.12094,84999.0,84998.0,0.117671]
[1741520899312,0.07964,84999.0,84998.0,0.117671]
[1741520899518,0.0413,85003.0,85002.0,0.1176654]
[1741520899719,0.1176682,85001.0,85000.0,0.1176672]
[1741520899918,0.1176682,85001.0,85000.0,0.12950387]
[1741520900127,0.1589682,85001.0,85000.0,0.12950387]
[1741520900320,0.2002682,85001.0,85000.0,0.16980387]
[1741520901627,0.1589682,85001.0,85000.0,0.16980387]
[1741520901825,0.00017613,85010.0,85009.0,0.1176557]
[1741520902013,0.07981613,85010.0,85009.0,0.1176557]
[1741520902213,0.11783043,85010.0,85007.0,0.085]
[1741520902421,0.1176571,85008.0,85007.0,0.085]
[1741520903121,0.1598571,85008.0,85007.0,0.085]
[1741520903320,0.2002571,85008.0,85007.0,0.085]
[1741520904527,0.2002571,85008.0,85007.0,0.2026585]
[1741520904528,0.1598571,85008.0,85007.0,0.2026585]
[1741520904718,0.00017613,85010.0,85007.0,0.085]
[1741520904918,0.11783093,85010.0,85009.0,0.1176557]
[1741520905719,0.11783093,85010.0,85009.0,0.1614557]
[1741520905915,0.11783093,85010.0,85009.0,0.0438]
[1741520906129,0.1176571,85008.0,85007.0,0.0412]
[1741520906323,0.1972971,85008.0,85007.0,0.0412]
[1741520906523,0.1972971,85008.0,85007.0,0.2026585]
[1741520906824,0.2394971,85008.0,85007.0,0.2026585]
[1741520908719,0.1972971,85008.0,85007.0,0.2026585]
[1741520909122,0.2413971,85008.0,85007.0,0.2026585]
[1741520909527,0.2413971,85008.0,85007.0,0.41399748]
[1741520913232,0.2413971,85008.0,85007.0,0.2026585]
[1741520916725,0.2413971,85008.0,85007.0,0.2454585]
[1741520919227,0.1972971,85008.0,85007.0,0.2454585]
[1741520919632,0.2412971,85008.0,85007.0,0.2454585]
[1741520920429,0.1616571,85008.0,85007.0,0.2454585]
[1741520920625,0.1616571,85008.0,85007.0,0.0428]
[1741520920935,0.2025571,85008.0,85007.0,0.0428]
[1741520921935,0.2025571,85008.0,85007.0,0.0839]
[1741520923033,0.2025571,85008.0,85007.0,0.2015585]
[1741520924934,0.1616571,85008.0,85007.0,0.2015585]
[1741520925237,0.044,85008.0,85007.0,0.2015585]
[1741520925432,0.1616571,85008.0,85007.0,0.2015585]
[1741520926228,0.0433,85009.0,85007.0,0.2015585]
[1741520926436,0.0433,85009.0,85008.0,0.1176571]
[1741520926737,0.1609557,85009.0,85008.0,0.1176571]
[1741520926928,0.1609557,85009.0,85008.0,0.2017571]
[1741520927130,0.1609557,85009.0,85008.0,0.0841]
[1741520927430,0.1609557,85009.0,85008.0,0.2017571]
[1741520930936,0.0433,85009.0,85008.0,0.2017571]
[1741520931241,0.1409444,85022.0,85021.0,0.1176391]
[1741520931436,0.2585821,85022.0,85021.0,0.1176391]
[1741520932035,0.2585821,85022.0,85021.0,0.2035391]
[1741520932638,0.2585821,85022.0,85021.0,0.0859]
[1741520932844,0.2585821,85022.0,85021.0,0.2035391]
[1741520933730,0.2585821,85022.0,85021.0,0.21518309]
[1741520934137,0.1409444,85022.0,85021.0,0.21518309]
[1741520934439,0.1176315,85027.0,85021.0,0.17714399]
[1741520934636,0.1176315,85027.0,85026.0,0.1764448]
[1741520935038,0.1176315,85027.0,85026.0,0.2608448]
[1741520935234,0.1176232,85033.0,85032.0,0.0588113]
[1741520935438,0.1409444,85035.0,85034.0,0.1176211]
[1741520935640,0.2585642,85035.0,85034.0,0.1176211]
[1741520935837,0.1176225,85033.0,85032.0,0.2449227]
[1741520936141,0.1409444,85035.0,85032.0,0.0838]
[1741520936345,0.2585649,85035.0,85034.0,0.1176211]
[1741520936939,0.1409444,85035.0,85034.0,0.1176211]
[1741520938447,0.1176157,85038.0,85034.0,0.28195124]
[1741520938648,0.0588064,85040.0,85039.0,0.1176142]
[1741520939041,0.0588042,85044.0,85037.0,0.3614]
[1741520939246,0.0588042,85044.0,85034.0,0.28195124]
[1741520939247,0.1176198,85035.0,85034.0,0.28195124]
[1741520939549,0.1971798,85035.0,85034.0,0.28195124]
[1741520940141,0.1971798,85035.0,85034.0,0.39957234]
[1741520940449,0.1971798,85035.0,85034.0,0.28195124]
[1741520941049,0.1176198,85035.0,85034.0,0.28195124]
[1741520941250,0.1971798,85035.0,85034.0,0.39957234]
[1741520941550,0.1971798,85035.0,85034.0,0.28195124]
[1741520941752,0.2397798,85035.0,85034.0,0.28195124]
[1741520942044,0.2397798,85035.0,85034.0,0.32265124]
[1741520942361,0.1971798,85035.0,85034.0,0.32265124]
[1741520942563,0.1176198,85035.0,85034.0,0.32265124]
[1741520942857,0.1176198,85035.0,85034.0,0.28195124]
[1741520943052,0.1614198,85035.0,85034.0,0.28195124]
[1741520943652,0.1614198,85035.0,85034.0,0.39957234]
[1741520943852,0.1614198,85035.0,85034.0,0.28195124]
[1741520944861,0.5222198,85035.0,85034.0,0.28195124]
[1741520945061,0.6722198,85035.0,85034.0,0.21525124]
[1741520945363,0.1176281,85029.0,85028.0,0.10642281]
[1741520945564,0.44036,85029.0,85022.0,0.42126791]
[1741520945759,0.4784364,85023.0,85022.0,0.42066791]
[1741520945956,0.5579964,85023.0,85022.0,0.42066791]
[1741520946149,0.5579964,85023.0,85022.0,0.38729321]
[1741520946358,0.44036,85023.0,85022.0,0.38729321]
[1741520946555,0.1971964,85023.0,85022.0,0.38729321]
[1741520947260,0.5579964,85023.0,85022.0,0.38729321]
[1741520949165,0.2412964,85023.0,85022.0,0.38729321]
[1741520949365,0.6020964,85023.0,85022.0,0.38729321]
[1741520949564,0.2412964,85023.0,85022.0,0.21102646]
[1741520950161,0.1176364,85023.0,85022.0,0.21102646]
[1741520950356,0.1971964,85023.0,85022.0,0.21102646]
[1741520951367,0.2405964,85023.0,85022.0,0.21102646]
[1741520952662,0.6013964,85023.0,85022.0,0.21102646]
[1741520954069,0.7513964,85023.0,85016.0,0.00176414]
[1741520954267,0.1176447,85017.0,85016.0,0.00176414]
[1741520954470,0.1972047,85017.0,85016.0,0.00176414]
[1741520954666,0.2800047,85017.0,85016.0,0.00176414]
[1741520955167,0.2812047,85017.0,85016.0,0.00176414]
[1741520955669,0.1176474,85015.0,85014.0,0.00017648]